[Event "Live Chess"]
[Site "Chess.com"]
[Date "2023.05.21"]
[Round "-"]
[White "jimwad"]
[Black "NomisY"]
[Result "1/2-1/2"]
[WhiteElo "1227"]
[BlackElo "1517"]
[TimeControl "300"]
[EndTime "7:39:03 PDT"]
[Termination "Game drawn by repetition"]

1. c4 {[%clk 0:04:59.3]} 1... e6 {[%clk 0:04:57.8]} 2. g3 {[%clk 0:04:58.1]}
2... d5 {[%clk 0:04:56.6]} 3. cxd5 {[%clk 0:04:56.7]} 3... exd5 {[%clk
0:04:51.4]} 4. Bg2 {[%clk 0:04:55.3]} 4... Nf6 {[%clk 0:04:50.3]} 5. d4 {[%clk
0:04:49.6]} 5... c6 {[%clk 0:04:45.5]} 6. Nc3 {[%clk 0:04:48.2]} 6... Bf5 {[%clk
0:04:42.2]} 7. Bg5 {[%clk 0:04:46.4]} 7... Be7 {[%clk 0:04:40.9]} 8. e3 {[%clk
0:04:44.8]} 8... h6 {[%clk 0:04:39.6]} 9. Bf4 {[%clk 0:04:43.4]} 9... Nbd7
{[%clk 0:04:34.4]} 10. Nge2 {[%clk 0:04:40.6]} 10... O-O {[%clk 0:04:32.9]} 11.
O-O {[%clk 0:04:39]} 11... g5 {[%clk 0:04:08.7]} 12. Be5 {[%clk 0:04:37]} 12...
Nxe5 {[%clk 0:04:07.8]} 13. dxe5 {[%clk 0:04:35.5]} 13... Ng4 {[%clk 0:04:07.4]}
14. Nd4 {[%clk 0:04:08.4]} 14... Bc8 {[%clk 0:03:38.9]} 15. e6 {[%clk 0:04:02]}
15... Ne5 {[%clk 0:03:03.8]} 16. exf7+ {[%clk 0:03:57.6]} 16... Rxf7 {[%clk
0:03:03]} 17. Qh5 {[%clk 0:03:49.6]} 17... Kg7 {[%clk 0:02:38.4]} 18. Bh3 {[%clk
0:03:28.3]} 18... Bxh3 {[%clk 0:02:18.7]} 19. Qxh3 {[%clk 0:03:26.5]} 19... Qd7
{[%clk 0:02:06.3]} 20. Qxd7 {[%clk 0:03:23.6]} 20... Nxd7 {[%clk 0:02:04.5]} 21.
f4 {[%clk 0:03:16]} 21... Nc5 {[%clk 0:01:21.8]} 22. fxg5 {[%clk 0:03:10.2]}
22... Bxg5 {[%clk 0:01:20.5]} 23. Rxf7+ {[%clk 0:03:08.3]} 23... Kxf7 {[%clk
0:01:19.6]} 24. Rf1+ {[%clk 0:03:07.2]} 24... Kg6 {[%clk 0:01:16.6]} 25. Nf5
{[%clk 0:02:35]} 25... Re8 {[%clk 0:01:15.2]} 26. h4 {[%clk 0:02:25.1]} 26...
Bxe3+ {[%clk 0:01:13.2]} 27. Nxe3 {[%clk 0:02:23.8]} 27... Rxe3 {[%clk
0:01:12.8]} 28. Kg2 {[%clk 0:02:20.4]} 28... Nd3 {[%clk 0:01:08.8]} 29. Nd1
{[%clk 0:02:12.3]} 29... Re2+ {[%clk 0:01:05.7]} 30. Kh3 {[%clk 0:02:10.9]}
30... Nxb2 {[%clk 0:01:00.8]} 31. Nxb2 {[%clk 0:02:04.6]} 31... Rxb2 {[%clk
0:00:59.8]} 32. a4 {[%clk 0:02:03]} 32... Ra2 {[%clk 0:00:57.4]} 33. Rb1 {[%clk
0:02:01.7]} 33... b6 {[%clk 0:00:56.9]} 34. Rb4 {[%clk 0:01:57.7]} 34... c5
{[%clk 0:00:54.9]} 35. Rg4+ {[%clk 0:01:55.4]} 35... Kf6 {[%clk 0:00:52.7]} 36.
Rf4+ {[%clk 0:01:53.6]} 36... Kg6 {[%clk 0:00:51.6]} 37. Rg4+ {[%clk 0:01:52.2]}
37... Kf5 {[%clk 0:00:50.7]} 38. Rg7 {[%clk 0:01:50.7]} 38... Rxa4 {[%clk
0:00:48.5]} 39. g4+ {[%clk 0:01:47.1]} 39... Kf6 {[%clk 0:00:45.8]} 40. Rd7
{[%clk 0:01:43.4]} 40... Ra3+ {[%clk 0:00:44.4]} 41. Kg2 {[%clk 0:01:42.1]}
41... d4 {[%clk 0:00:43.7]} 42. Rd5 {[%clk 0:01:37.1]} 42... Re3 {[%clk
0:00:40.8]} 43. g5+ {[%clk 0:01:35.7]} 43... hxg5 {[%clk 0:00:39.6]} 44. hxg5+
{[%clk 0:01:34.4]} 44... Kg6 {[%clk 0:00:39]} 45. Rd7 {[%clk 0:01:31.4]} 45...
Kxg5 {[%clk 0:00:35.9]} 46. Rxa7 {[%clk 0:01:30.5]} 46... d3 {[%clk 0:00:34]}
47. Rd7 {[%clk 0:01:28.7]} 47... c4 {[%clk 0:00:32.5]} 48. Rd4 {[%clk
0:01:25.7]} 48... c3 {[%clk 0:00:30.4]} 49. Kf2 {[%clk 0:01:22.1]} 49... Re2+
{[%clk 0:00:26.7]} 50. Kf1 {[%clk 0:01:20.9]} 50... Re3 {[%clk 0:00:24.8]} 51.
Kf2 {[%clk 0:01:19.6]} 51... Rh3 {[%clk 0:00:19.9]} 52. Kg2 {[%clk 0:01:18.2]}
52... Re3 {[%clk 0:00:18.7]} 53. Kf2 {[%clk 0:01:17.4]} 1/2-1/2

[Event "Live Chess"]
[Site "Chess.com"]
[Date "2023.05.21"]
[Round "-"]
[White "GEMdzq"]
[Black "Cimon"]
[Result "1-0"]
[WhiteElo "2224"]
[BlackElo "1843"]
[TimeControl "300"]
[EndTime "7:39:05 PDT"]
[Termination "GEMdzq won on time"]

1. e4 {[%clk 0:04:58.5]} 1... d6 {[%clk 0:04:55.5]} 2. d4 {[%clk 0:04:56.9]}
2... Nf6 {[%clk 0:04:54.2]} 3. Nc3 {[%clk 0:04:56.8]} 3... g6 {[%clk 0:04:52.9]}
4. Bc4 {[%clk 0:04:55.8]} 4... Bg7 {[%clk 0:04:51.3]} 5. Nf3 {[%clk 0:04:55.5]}
5... c6 {[%clk 0:04:49.6]} 6. a4 {[%clk 0:04:53]} 6... Bg4 {[%clk 0:04:41.8]} 7.
h3 {[%clk 0:04:51]} 7... Bxf3 {[%clk 0:04:40.1]} 8. Qxf3 {[%clk 0:04:50.9]} 8...
O-O {[%clk 0:04:38.7]} 9. O-O {[%clk 0:04:49.3]} 9... Nbd7 {[%clk 0:04:36.2]}
10. Be3 {[%clk 0:04:43.3]} 10... e5 {[%clk 0:04:30.1]} 11. d5 {[%clk 0:04:42.4]}
11... c5 {[%clk 0:04:04.5]} 12. Bg5 {[%clk 0:04:31.7]} 12... h6 {[%clk
0:04:02.3]} 13. Bh4 {[%clk 0:04:30.5]} 13... g5 {[%clk 0:04:00.9]} 14. Bg3
{[%clk 0:04:29.5]} 14... a6 {[%clk 0:03:57]} 15. a5 {[%clk 0:04:23.3]} 15... b5
{[%clk 0:03:35.9]} 16. axb6 {[%clk 0:04:20.3]} 16... Nxb6 {[%clk 0:03:30.2]} 17.
Bxa6 {[%clk 0:04:16.8]} 17... Qd7 {[%clk 0:03:01.1]} 18. Bb5 {[%clk 0:04:10.3]}
18... Qc7 {[%clk 0:02:56.4]} 19. Bc6 {[%clk 0:04:03.7]} 19... Rab8 {[%clk
0:02:48.6]} 20. b3 {[%clk 0:04:01.1]} 20... Qc8 {[%clk 0:02:38.1]} 21. Nb5
{[%clk 0:03:39.1]} 21... Qd8 {[%clk 0:02:31.8]} 22. Ra7 {[%clk 0:03:28.9]} 22...
Nc8 {[%clk 0:02:07.1]} 23. Ra2 {[%clk 0:03:26.5]} 23... Ne8 {[%clk 0:01:55.7]}
24. Na7 {[%clk 0:02:54.2]} 24... Nc7 {[%clk 0:01:41.5]} 25. Nxc8 {[%clk
0:02:40.6]} 25... Qxc8 {[%clk 0:01:35.9]} 26. Ra7 {[%clk 0:02:30.4]} 26... Nb5
{[%clk 0:01:29.8]} 27. Bxb5 {[%clk 0:02:23.3]} 27... Rxb5 {[%clk 0:01:28.4]} 28.
Rfa1 {[%clk 0:02:21.9]} 28... f5 {[%clk 0:01:20.4]} 29. exf5 {[%clk 0:02:16.4]}
29... e4 {[%clk 0:01:19.4]} 30. Qh5 {[%clk 0:02:11.7]} 30... Qxf5 {[%clk
0:01:09.7]} 31. Re1 {[%clk 0:01:45.1]} 31... Rbb8 {[%clk 0:00:58.9]} 32. Qe2
{[%clk 0:01:40.6]} 32... e3 {[%clk 0:00:42.1]} 33. Qxe3 {[%clk 0:01:33.4]} 33...
Qxc2 {[%clk 0:00:40.6]} 34. Qe7 {[%clk 0:01:23.3]} 34... Qg6 {[%clk 0:00:27.3]}
35. Re6 {[%clk 0:01:08.5]} 35... Qb1+ {[%clk 0:00:24.3]} 36. Kh2 {[%clk
0:01:07.1]} 36... Qh7 {[%clk 0:00:13.1]} 37. Qxd6 {[%clk 0:00:56.2]} 37... Rxb3
{[%clk 0:00:11.2]} 38. Ree7 {[%clk 0:00:55.2]} 38... Qf5 {[%clk 0:00:00.2]} 39.
Rxg7+ {[%clk 0:00:53.6]} 1-0

[Event "Live Chess"]
[Site "Chess.com"]
[Date "2023.05.21"]
[Round "-"]
[White "viktorskliarov"]
[Black "peleus16"]
[Result "1-0"]
[WhiteElo "2646"]
[BlackElo "1751"]
[TimeControl "300"]
[EndTime "7:39:11 PDT"]
[Termination "viktorskliarov won on time"]

1. e4 {[%clk 0:04:58.1]} 1... d5 {[%clk 0:04:55.4]} 2. exd5 {[%clk 0:04:56.9]}
2... Qxd5 {[%clk 0:04:52]} 3. Nc3 {[%clk 0:04:56]} 3... Qa5 {[%clk 0:04:50.4]}
4. d4 {[%clk 0:04:51]} 4... Nf6 {[%clk 0:04:47.4]} 5. Bc4 {[%clk 0:04:49.2]}
5... Bf5 {[%clk 0:04:43.1]} 6. Ne2 {[%clk 0:04:44.3]} 6... e6 {[%clk 0:04:37.7]}
7. Bd2 {[%clk 0:04:39.3]} 7... c6 {[%clk 0:04:35.2]} 8. O-O {[%clk 0:04:33.1]}
8... Be7 {[%clk 0:04:31.2]} 9. Nd5 {[%clk 0:04:31.4]} 9... Qd8 {[%clk
0:04:24.2]} 10. Nxe7 {[%clk 0:04:29.8]} 10... Qxe7 {[%clk 0:04:21.3]} 11. a3
{[%clk 0:04:26.6]} 11... Nbd7 {[%clk 0:04:14]} 12. Ng3 {[%clk 0:04:24]} 12...
Bg6 {[%clk 0:04:09.7]} 13. Re1 {[%clk 0:04:17.1]} 13... O-O {[%clk 0:04:03.1]}
14. Bb4 {[%clk 0:04:06.2]} 14... c5 {[%clk 0:03:53.7]} 15. dxc5 {[%clk
0:04:03.7]} 15... Nxc5 {[%clk 0:03:49.4]} 16. Qd4 {[%clk 0:04:01.7]} 16... b6
{[%clk 0:03:38.8]} 17. Re2 {[%clk 0:03:55.2]} 17... Rad8 {[%clk 0:03:33.9]} 18.
Qh4 {[%clk 0:03:53.3]} 18... Rd7 {[%clk 0:03:18.9]} 19. Rae1 {[%clk 0:03:39.3]}
19... Rfd8 {[%clk 0:03:11]} 20. h3 {[%clk 0:03:37.8]} 20... a5 {[%clk
0:02:58.4]} 21. Bc3 {[%clk 0:03:31.2]} 21... Rd1 {[%clk 0:02:14.3]} 22. Qg5
{[%clk 0:02:53.7]} 22... h6 {[%clk 0:01:39.9]} 23. Qh4 {[%clk 0:02:25.3]} 23...
Rxe1+ {[%clk 0:01:25.6]} 24. Rxe1 {[%clk 0:02:15.1]} 24... Bxc2 {[%clk
0:01:11.2]} 25. Nh5 {[%clk 0:02:10.5]} 25... Ncd7 {[%clk 0:00:19.8]} 26. Re3
{[%clk 0:01:50.4]} 26... Nxh5 {[%clk 0:00:07.4]} 27. Qxe7 {[%clk 0:01:47.4]} 1-0

[Event "Live Chess"]
[Site "Chess.com"]
[Date "2023.05.21"]
[Round "-"]
[White "EdenHazard8"]
[Black "Mugzwang"]
[Result "1-0"]
[WhiteElo "1932"]
[BlackElo "1445"]
[TimeControl "300"]
[EndTime "7:39:11 PDT"]
[Termination "EdenHazard8 won on time"]

1. e4 {[%clk 0:04:59.5]} 1... e6 {[%clk 0:04:57.7]} 2. d4 {[%clk 0:04:58.5]}
2... d5 {[%clk 0:04:56.4]} 3. exd5 {[%clk 0:04:58.4]} 3... exd5 {[%clk
0:04:55.2]} 4. Bd3 {[%clk 0:04:58.3]} 4... Nf6 {[%clk 0:04:53.4]} 5. c3 {[%clk
0:04:58.2]} 5... Bd6 {[%clk 0:04:49.2]} 6. Nf3 {[%clk 0:04:58.1]} 6... O-O
{[%clk 0:04:46.8]} 7. O-O {[%clk 0:04:57]} 7... h6 {[%clk 0:04:44.4]} 8. h3
{[%clk 0:04:56]} 8... Nbd7 {[%clk 0:04:33]} 9. Re1 {[%clk 0:04:53.2]} 9... c6
{[%clk 0:04:30.4]} 10. Nbd2 {[%clk 0:04:51.2]} 10... Qc7 {[%clk 0:04:15.2]} 11.
Nf1 {[%clk 0:04:49.9]} 11... b6 {[%clk 0:04:10.6]} 12. Bc2 {[%clk 0:04:48.8]}
12... Ba6 {[%clk 0:04:02.9]} 13. Bd3 {[%clk 0:04:47.1]} 13... Bxd3 {[%clk
0:04:01.2]} 14. Qxd3 {[%clk 0:04:47]} 14... Rfe8 {[%clk 0:03:56]} 15. Ne3 {[%clk
0:04:45.8]} 15... Ne4 {[%clk 0:03:51.5]} 16. Nf5 {[%clk 0:04:41.2]} 16... Ndf6
{[%clk 0:03:39.2]} 17. Nxd6 {[%clk 0:04:33.6]} 17... Qxd6 {[%clk 0:03:35]} 18.
Ne5 {[%clk 0:04:33.5]} 18... Nd7 {[%clk 0:03:23.8]} 19. Bf4 {[%clk 0:04:30.5]}
19... Nxe5 {[%clk 0:03:13]} 20. Bxe5 {[%clk 0:04:30.4]} 20... Qg6 {[%clk
0:03:11.1]} 21. f3 {[%clk 0:04:26.9]} 21... Ng5 {[%clk 0:02:53.8]} 22. Qxg6
{[%clk 0:04:26.8]} 22... fxg6 {[%clk 0:02:52.7]} 23. Kf2 {[%clk 0:04:22.2]}
23... Kh7 {[%clk 0:02:48.1]} 24. h4 {[%clk 0:04:19.5]} 24... Nf7 {[%clk
0:02:46.5]} 25. Bg3 {[%clk 0:04:17.2]} 25... g5 {[%clk 0:02:39.6]} 26. Re2
{[%clk 0:04:10.7]} 26... Rxe2+ {[%clk 0:02:36.9]} 27. Kxe2 {[%clk 0:04:10.6]}
27... Re8+ {[%clk 0:02:36.1]} 28. Kf2 {[%clk 0:04:09.2]} 28... gxh4 {[%clk
0:02:18.1]} 29. Bxh4 {[%clk 0:04:07.6]} 29... Nd6 {[%clk 0:02:17.3]} 30. b3
{[%clk 0:04:05.4]} 30... Nf5 {[%clk 0:02:15.9]} 31. Bg3 {[%clk 0:03:58.6]} 31...
Nxg3 {[%clk 0:02:12.3]} 32. Kxg3 {[%clk 0:03:58.5]} 32... Re2 {[%clk 0:02:10.7]}
33. Rc1 {[%clk 0:03:37.1]} 33... Rxa2 {[%clk 0:01:57.8]} 34. c4 {[%clk 0:03:37]}
34... dxc4 {[%clk 0:01:49]} 35. bxc4 {[%clk 0:03:36.9]} 35... Rd2 {[%clk
0:01:46]} 36. Ra1 {[%clk 0:03:34.5]} 36... a5 {[%clk 0:01:44]} 37. c5 {[%clk
0:03:33.1]} 37... Rxd4 {[%clk 0:01:26.8]} 38. cxb6 {[%clk 0:03:30.7]} 38... Rb4
{[%clk 0:01:25.9]} 39. Rxa5 {[%clk 0:03:28.2]} 39... Rxb6 {[%clk 0:01:24.3]} 40.
Rc5 {[%clk 0:03:28.1]} 40... Kg6 {[%clk 0:01:18.8]} 41. Kg4 {[%clk 0:03:25.6]}
41... Kf6 {[%clk 0:01:16.4]} 42. f4 {[%clk 0:03:23.1]} 42... g6 {[%clk
0:01:09.6]} 43. g3 {[%clk 0:03:20.5]} 43... h5+ {[%clk 0:01:06.5]} 44. Kh4
{[%clk 0:03:19.3]} 44... Ra6 {[%clk 0:01:00.5]} 45. Kh3 {[%clk 0:03:16.3]} 45...
Rb6 {[%clk 0:00:57.3]} 46. Rc3 {[%clk 0:03:14.1]} 46... g5 {[%clk 0:00:45.1]}
47. Rd3 {[%clk 0:03:09.7]} 47... gxf4 {[%clk 0:00:38.8]} 48. gxf4 {[%clk
0:03:09.6]} 48... Kf5 {[%clk 0:00:35.1]} 49. Rd4 {[%clk 0:03:06.6]} 49... Rb3+
{[%clk 0:00:28.1]} 50. Kh4 {[%clk 0:03:04.9]} 50... Rf3 {[%clk 0:00:19.8]} 51.
Kxh5 {[%clk 0:02:58.8]} 51... Rxf4 {[%clk 0:00:18.6]} 52. Rd6 {[%clk 0:02:58.1]}
52... Rc4 {[%clk 0:00:15.7]} 53. Kh6 {[%clk 0:02:55.2]} 53... Rc1 {[%clk
0:00:14.3]} 54. Kg7 {[%clk 0:02:53.8]} 54... c5 {[%clk 0:00:13.5]} 55. Kf7
{[%clk 0:02:51.5]} 55... c4 {[%clk 0:00:13]} 56. Ke7 {[%clk 0:02:48.6]} 56... c3
{[%clk 0:00:12.2]} 57. Rc6 {[%clk 0:02:45.2]} 57... c2 {[%clk 0:00:10.7]} 58.
Kf7 {[%clk 0:02:44.2]} 58... Ke5 {[%clk 0:00:06.9]} 59. Ke7 {[%clk 0:02:39.6]}
59... Kd5 {[%clk 0:00:05.8]} 60. Rd6+ {[%clk 0:02:38.7]} 60... Kc4 {[%clk
0:00:04.4]} 61. Rd8 {[%clk 0:02:37.6]} 61... Kb3 {[%clk 0:00:03.2]} 62. Rb8+
{[%clk 0:02:36.3]} 62... Kc3 {[%clk 0:00:02]} 63. Rc8+ {[%clk 0:02:35.3]} 63...
Kb3 {[%clk 0:00:01.4]} 64. Kf6 {[%clk 0:02:33.5]} 1-0

[Event "Live Chess"]
[Site "Chess.com"]
[Date "2023.05.21"]
[Round "-"]
[White "Ra2orLeaf"]
[Black "Long1968"]
[Result "1-0"]
[WhiteElo "1146"]
[BlackElo "951"]
[TimeControl "300"]
[EndTime "7:39:12 PDT"]
[Termination "Ra2orLeaf won by resignation"]

1. d4 {[%clk 0:04:57.6]} 1... Nf6 {[%clk 0:04:56.3]} 2. Nf3 {[%clk 0:04:57.2]}
2... g6 {[%clk 0:04:51.9]} 3. Bg5 {[%clk 0:04:56.6]} 3... Bg7 {[%clk 0:04:44.2]}
4. Nc3 {[%clk 0:04:50.5]} 4... O-O {[%clk 0:04:40.1]} 5. e4 {[%clk 0:04:49.5]}
5... d6 {[%clk 0:04:13.2]} 6. e5 {[%clk 0:04:34.3]} 6... d5 {[%clk 0:04:07.4]}
7. exf6 {[%clk 0:04:32.6]} 7... exf6 {[%clk 0:04:02.7]} 8. Be3 {[%clk
0:04:27.7]} 8... f5 {[%clk 0:03:47.1]} 9. Qd2 {[%clk 0:04:24.1]} 9... Nc6 {[%clk
0:03:40.3]} 10. O-O-O {[%clk 0:04:19.2]} 10... Be6 {[%clk 0:03:18]} 11. Bh6
{[%clk 0:04:13]} 11... Re8 {[%clk 0:03:06.9]} 1-0

[Event "Live Chess"]
[Site "Chess.com"]
[Date "2023.05.21"]
[Round "-"]
[White "davigator"]
[Black "youtookmyhorse"]
[Result "1-0"]
[WhiteElo "2286"]
[BlackElo "762"]
[TimeControl "300"]
[EndTime "7:39:16 PDT"]
[Termination "davigator won by checkmate"]

1. e4 {[%clk 0:04:58.4]} 1... c6 {[%clk 0:04:58.8]} 2. d4 {[%clk 0:04:57]} 2...
d5 {[%clk 0:04:57.5]} 3. e5 {[%clk 0:04:56.6]} 3... Bf5 {[%clk 0:04:56.5]} 4. c4
{[%clk 0:04:54.1]} 4... e6 {[%clk 0:04:51.1]} 5. Qb3 {[%clk 0:04:51.4]} 5... b6
{[%clk 0:04:43.1]} 6. Nc3 {[%clk 0:04:47.3]} 6... Nd7 {[%clk 0:04:30.6]} 7. Nf3
{[%clk 0:04:44.5]} 7... Ne7 {[%clk 0:04:28.8]} 8. cxd5 {[%clk 0:04:38.5]} 8...
exd5 {[%clk 0:04:22.9]} 9. Bf4 {[%clk 0:04:34.9]} 9... Ng6 {[%clk 0:04:10.5]}
10. Bg3 {[%clk 0:04:33.6]} 10... Be7 {[%clk 0:04:02.8]} 11. a4 {[%clk
0:04:27.7]} 11... O-O {[%clk 0:04:01]} 12. Be2 {[%clk 0:04:26]} 12... f6 {[%clk
0:03:49]} 13. O-O {[%clk 0:04:20.1]} 13... fxe5 {[%clk 0:03:46.3]} 14. dxe5
{[%clk 0:04:18.6]} 14... Ndxe5 {[%clk 0:03:44.3]} 15. Nxe5 {[%clk 0:04:16.4]}
15... Nxe5 {[%clk 0:03:38.4]} 16. Bxe5 {[%clk 0:04:15.5]} 16... Be4 {[%clk
0:03:34.8]} 17. Nxe4 {[%clk 0:04:13.5]} 17... Bh4 {[%clk 0:03:21.2]} 18. Bg3
{[%clk 0:04:06.8]} 18... c5 {[%clk 0:03:12.2]} 19. Nc3 {[%clk 0:04:02.9]} 19...
Kh8 {[%clk 0:03:08.6]} 20. Qxd5 {[%clk 0:03:59.4]} 20... Qf6 {[%clk 0:02:55.8]}
21. Bf3 {[%clk 0:03:53.2]} 21... Rad8 {[%clk 0:02:50]} 22. Qc6 {[%clk
0:03:49.5]} 22... Qd4 {[%clk 0:02:38.1]} 23. Rad1 {[%clk 0:03:44.4]} 23... Qc4
{[%clk 0:02:12.1]} 24. Rxd8 {[%clk 0:03:38.5]} 24... Rxd8 {[%clk 0:02:09.6]} 25.
Ne4 {[%clk 0:03:34.8]} 25... Bxg3 {[%clk 0:02:04.6]} 26. hxg3 {[%clk 0:03:34.2]}
26... Qb3 {[%clk 0:01:56.4]} 27. Qc7 {[%clk 0:03:30]} 27... Rg8 {[%clk
0:01:44.2]} 28. Ng5 {[%clk 0:03:27.9]} 28... Qxb2 {[%clk 0:01:39.9]} 29. Nf7#
{[%clk 0:03:25.2]} 1-0

[Event "Live Chess"]
[Site "Chess.com"]
[Date "2023.05.21"]
[Round "-"]
[White "LiamBellwood"]
[Black "educatedlad"]
[Result "1-0"]
[WhiteElo "1905"]
[BlackElo "1624"]
[TimeControl "300"]
[EndTime "7:39:23 PDT"]
[Termination "LiamBellwood won by resignation"]

1. d4 {[%clk 0:04:58.7]} 1... d5 {[%clk 0:04:56.7]} 2. Nc3 {[%clk 0:04:58.1]}
2... Nf6 {[%clk 0:04:55]} 3. Bf4 {[%clk 0:04:57.9]} 3... e6 {[%clk 0:04:53.7]}
4. Nb5 {[%clk 0:04:56.7]} 4... Bb4+ {[%clk 0:04:53.1]} 5. c3 {[%clk 0:04:55.5]}
5... Ba5 {[%clk 0:04:53]} 6. b4 {[%clk 0:04:54.8]} 6... Bb6 {[%clk 0:04:50.3]}
7. a4 {[%clk 0:04:54.4]} 7... a6 {[%clk 0:04:49.2]} 8. a5 {[%clk 0:04:50.2]}
8... axb5 {[%clk 0:04:47.6]} 9. axb6 {[%clk 0:04:49.7]} 9... Rxa1 {[%clk
0:04:39]} 10. Qxa1 {[%clk 0:04:49.6]} 10... cxb6 {[%clk 0:04:21.9]} 11. Bxb8
{[%clk 0:04:48.4]} 11... O-O {[%clk 0:04:21.5]} 12. Nf3 {[%clk 0:04:46.1]} 12...
Ne4 {[%clk 0:04:19.9]} 13. Bf4 {[%clk 0:04:43.3]} 13... Bd7 {[%clk 0:04:13.9]}
14. e3 {[%clk 0:04:41.3]} 14... Qc8 {[%clk 0:04:09]} 15. Ne5 {[%clk 0:04:35.7]}
15... Bc6 {[%clk 0:03:59.5]} 16. f3 {[%clk 0:04:25.9]} 16... Nd6 {[%clk
0:03:49.1]} 17. Bd3 {[%clk 0:04:24.3]} 17... Nc4 {[%clk 0:03:46.7]} 18. O-O
{[%clk 0:04:18.3]} 18... f6 {[%clk 0:03:40.3]} 19. Nxc4 {[%clk 0:04:14]} 19...
dxc4 {[%clk 0:03:38.3]} 20. Bc2 {[%clk 0:04:00.4]} 20... Qe8 {[%clk 0:03:26.7]}
21. Qe1 {[%clk 0:03:51]} 21... e5 {[%clk 0:03:25.5]} 22. Bg3 {[%clk 0:03:31]}
22... exd4 {[%clk 0:03:12.3]} 23. exd4 {[%clk 0:03:30.1]} 23... Qh5 {[%clk
0:03:10]} 24. Qe6+ {[%clk 0:03:18.9]} 24... Kh8 {[%clk 0:03:08.9]} 25. Qg4
{[%clk 0:03:12.6]} 25... Qf7 {[%clk 0:03:01.2]} 26. Re1 {[%clk 0:03:06.2]} 26...
Re8 {[%clk 0:02:59.7]} 27. Rxe8+ {[%clk 0:02:55.1]} 27... Qxe8 {[%clk
0:02:59.6]} 28. Be4 {[%clk 0:02:51.4]} 28... Bxe4 {[%clk 0:02:54.1]} 29. Qxe4
{[%clk 0:02:50.3]} 29... Qa8 {[%clk 0:02:50.8]} 30. h4 {[%clk 0:02:42]} 30...
Qa1+ {[%clk 0:02:49.3]} 31. Kh2 {[%clk 0:02:40.9]} 31... h6 {[%clk 0:02:45.7]}
32. Be1 {[%clk 0:02:20.9]} 32... Qa8 {[%clk 0:02:39.9]} 33. Bd2 {[%clk
0:02:15.3]} 33... Qb8+ {[%clk 0:02:38.7]} 34. Bf4 {[%clk 0:02:14.1]} 34... Qa8
{[%clk 0:02:38.3]} 35. Qd5 {[%clk 0:02:01.9]} 35... g5 {[%clk 0:02:34.5]} 36.
hxg5 {[%clk 0:01:59.1]} 36... hxg5 {[%clk 0:02:33.7]} 37. Bd6 {[%clk 0:01:49.8]}
37... Qe8 {[%clk 0:02:20.8]} 38. Qxb7 {[%clk 0:01:38.5]} 38... Qh5+ {[%clk
0:02:19.2]} 39. Kg1 {[%clk 0:01:36.7]} 39... Qh4 {[%clk 0:02:14.7]} 40. Qe4
{[%clk 0:01:26.9]} 40... Qh6 {[%clk 0:02:08.1]} 41. Qe8+ {[%clk 0:01:19]} 41...
Kh7 {[%clk 0:02:05.9]} 42. Bf8 {[%clk 0:01:15.8]} 42... Qg6 {[%clk 0:02:01.6]}
43. Qxg6+ {[%clk 0:01:12.5]} 43... Kxg6 {[%clk 0:02:01.5]} 44. Bd6 {[%clk
0:01:11.9]} 44... Kf5 {[%clk 0:02:01.4]} 45. Bc7 {[%clk 0:01:11.8]} 45... Ke6
{[%clk 0:01:58.9]} 46. Bxb6 {[%clk 0:01:10.8]} 1-0